[Event "EYTCC Open U18 2022"]
[Site "Thessaloniki"]
[Date "2022.07.17"]
[Round "6.35"]
[White "Gerasopoulos, Nikolaos"]
[Black "Tagkaloglou, Savvas Stefanos"]
[Result "0-1"]
[ECO "C02"]
[WhiteElo "1526"]
[BlackElo "1724"]
[Annotator "NA COMBH"]
[PlyCount "98"]
[EventDate "2022.07.12"]
[EventType "team-tourn"]
[EventCountry "GRE"]
[SourceTitle "playchess.com"]
[Source "ChessBase"]
[SourceQuality "1"]
[WhiteTeam "Greece"]
[BlackTeam "Greece"]
[WhiteTeamCountry "GRE"]
[BlackTeamCountry "GRE"]
[TimeControl "40/5400+30:1800+30"]

1. e4 {[%emt 0:00:02]} e6 {[%emt 0:00:06]} 2. d4 {[%emt 0:00:35]} d5 {[%emt 0:00:04]} 3. e5 {[%emt 0:00:00]} c5 {[%emt 0:00:06]} 4. c3 {[%emt 0:00:00]} Nc6 {[%emt 0:00:04]} 5. Nf3 {[%emt 0:00:00]} Qb6 {[%emt 0:00:05]} 6. Bd3 {[%emt 0:00:06]} Bd7 {[%emt 0:00:11]} 7. Bc2 {[%emt 0:02:08]} cxd4 {[%emt 0:03:47]} 8. cxd4 {[%emt 0:00:06]} Nb4 {[%emt 0:02:47]} 9. O-O {[%emt 0:02:48]} Nxc2 {[%emt 0:02:55]} 10. Qxc2 {[%emt 0:00:37]} Rc8 {[%emt 0:01:38]} 11. Nc3 {[%emt 0:00:09]} Ne7 {[%emt 0:03:22]} 12. Be3 {[%emt 0:02:13]} Nf5 {[%emt 0:02:27]} 13. Qd2 {[%emt 0:03:16]} Bb4 {[%emt 0:02:50]} 14. Rac1 {[%emt 0:05:50]} O-O {[%emt 0:01:54]} 15. a3 {[%emt 0:00:48]} Bxc3 {[%emt 0:04:20]} 16. Rxc3 {[%emt 0:00:52]} Rxc3 {[%emt 0:00:06]} 17. Qxc3 {[%emt 0:00:05]} Rc8 {[%emt 0:00:06]} 18. Qd2 {[%emt 0:00:11]} Bb5 {[%emt 0:08:10]} 19. Rc1 {[%emt 0:00:28]} Bc4 {[%emt 0:00:04]} 20. Rc3 {[%emt 0:01:22]} Rc6 {[%emt 0:07:02]} 21. Bg5 {[%emt 0:19:08]} h6 {[%emt 0:01:18]} 22. Bf4 {[%emt 0:00:07]} Qd8 {[%emt 0:09:30]} 23. g4 {[%emt 0:14:27]} Ne7 {[%emt 0:04:24]} 24. Bxh6 {[%emt 0:00:39]} gxh6 {[%emt 0:00:13]} 25. Qxh6 {[%emt 0:00:06]} Qf8 {[%emt 0:05:47]} 26. Qg5+ {[%emt 0:04:32]} Ng6 {[%emt 0:01:43]} 27. Nh4 {[%emt 0:00:49]} Qe7 {[%emt 0:01:19]} 28. Qxe7 {[%emt 0:01:52]} Nxe7 {[%emt 0:00:06]} 29. f4 {[%emt 0:00:29]} Ba6 {[%emt 0:02:41]} 30. f5 {[%emt 0:01:20]} Rxc3 {[%emt 0:01:51]} 31. bxc3 {[%emt 0:00:04]} exf5 {[%emt 0:06:27]} 32. gxf5 {[%emt 0:00:09]} f6 {[%emt 0:00:12]} 33. exf6 {[%emt 0:04:13]} Nc6 {[%emt 0:00:10]} 34. Ng6 {[%emt 0:01:06]} Kf7 {[%emt 0:00:21]} 35. Nf4 {[%emt 0:00:15]} Bc4 {[%emt 0:01:15]} 36. Nh5 {[%emt 0:01:40]} Bd3 {[%emt 0:01:23]} 37. Nf4 {[%emt 0:00:58]} Be4 {[%emt 0:00:05]} 38. Kf2 {[%emt 0:00:12]} Kxf6 {[%emt 0:00:09]} 39. Ke3 {[%emt 0:00:07]} Kxf5 {[%emt 0:00:26]} 40. Ne2 {[%emt 0:00:00]} Kg4 {[%emt 0:00:00]} 41. c4 {[%emt 0:02:21]} Na5 {[%emt 0:02:12]} 42. cxd5 {[%emt 0:01:25]} Bxd5 {[%emt 0:00:04]} 43. Nc3 {[%emt 0:00:25]} Bc6 {[%emt 0:00:55]} 44. d5 {[%emt 0:00:20]} Bd7 {[%emt 0:00:32]} 45. Kd4 {[%emt 0:00:37]} Kf5 {[%emt 0:01:15]} 46. h4 {[%emt 0:00:55]} Nb3+ {[%emt 0:00:56]} 47. Kc4 {[%emt 0:01:03]} Nd2+ {[%emt 0:00:14]} 48. Kc5 {[%emt 0:02:02]} Ke5 {[%emt 0:00:45]} 49. h5 {[%emt 0:01:01]} b6+ {[%emt 0:00:08]} 0-1

[Event "EYTCC Open U18 2022"]
[Site "Thessaloniki"]
[Date "2022.07.17"]
[Round "6.36"]
[White "Stoimenidis, Markos"]
[Black "Skodras, Marios Konstantinos"]
[Result "0-1"]
[ECO "C54"]
[WhiteElo "1297"]
[BlackElo "1446"]
[Annotator "NA COMBH"]
[PlyCount "118"]
[EventDate "2022.07.12"]
[EventType "team-tourn"]
[EventCountry "GRE"]
[SourceTitle "playchess.com"]
[Source "ChessBase"]
[SourceQuality "1"]
[WhiteTeam "Greece"]
[BlackTeam "Greece"]
[WhiteTeamCountry "GRE"]
[BlackTeamCountry "GRE"]
[TimeControl "40/5400+30:1800+30"]

1. e4 {[%emt 0:00:03]} e5 {[%emt 0:00:09]} 2. Nf3 {[%emt 0:00:04]} Nc6 {[%emt 0:00:09]} 3. Bc4 {[%emt 0:00:04]} Bc5 {[%emt 0:00:10]} 4. c3 {[%emt 0:00:05]} Nf6 {[%emt 0:00:18]} 5. d3 {[%emt 0:00:06]} h6 {[%emt 0:00:27]} 6. Nbd2 {[%emt 0:00:31]} O-O {[%emt 0:00:25]} 7. O-O {[%emt 0:00:12]} d6 {[%emt 0:00:54]} 8. b4 {[%emt 0:00:34]} Bb6 {[%emt 0:00:11]} 9. Bb3 {[%emt 0:00:16]} Re8 {[%emt 0:01:07]} 10. Nc4 {[%emt 0:01:27]} Bg4 {[%emt 0:01:00]} 11. Ne3 {[%emt 0:03:23]} Bh5 {[%emt 0:00:33]} 12. Nf5 {[%emt 0:02:15]} Qd7 {[%emt 0:01:55]} 13. Qd2 {[%emt 0:03:29]} Nh7 {[%emt 0:52:06]} 14. Nxg7 {[%emt 0:03:24]} Bxf3 {[%emt 0:02:04]} 15. Nf5 {[%emt 0:03:00]} Bg4 {[%emt 0:16:31]} 16. Nxh6+ {[%emt 0:00:43]} Kg7 {[%emt 0:00:30]} 17. Nxf7 {[%emt 0:00:30]} Re6 {[%emt 0:00:48]} 18. Bxe6 {[%emt 0:00:46]} Qxe6 {[%emt 0:00:27]} 19. Ng5 {[%emt 0:00:25]} Nxg5 {[%emt 0:00:45]} 20. Qxg5+ {[%emt 0:00:06]} Qg6 {[%emt 0:00:08]} 21. Qxg6+ {[%emt 0:00:36]} Kxg6 {[%emt 0:00:01]} 22. h3 {[%emt 0:01:11]} Be2 {[%emt 0:00:32]} 23. Re1 {[%emt 0:01:02]} Bxd3 {[%emt 0:00:02]} 24. Be3 {[%emt 0:00:52]} Ne7 {[%emt 0:01:32]} 25. Bxb6 {[%emt 0:01:20]} axb6 {[%emt 0:00:07]} 26. Re3 {[%emt 0:00:37]} Bc4 {[%emt 0:00:01]} 27. a3 {[%emt 0:00:08]} Kf6 {[%emt 0:00:50]} 28. g4 {[%emt 0:01:50]} Ng6 {[%emt 0:00:35]} 29. Rf3+ {[%emt 0:00:59]} Nf4 {[%emt 0:00:20]} 30. Kh2 {[%emt 0:03:05]} Kg5 {[%emt 0:00:59]} 31. Kg3 {[%emt 0:01:33]} Rh8 {[%emt 0:00:22]} 32. Rh1 {[%emt 0:00:57]} Rh4 {[%emt 0:07:38]} 33. Re3 {[%emt 0:02:56]} Ne2+ {[%emt 0:02:11]} 34. Kf3 {[%emt 0:01:07]} Nf4 {[%emt 0:00:13]} 35. Ree1 {[%emt 0:07:10]} Be6 {[%emt 0:03:18]} 36. Kg3 {[%emt 0:01:49]} Bc4 {[%emt 0:00:23]} 37. Kf3 {[%emt 0:00:08]} b5 {[%emt 0:01:01]} 38. Ra1 {[%emt 0:00:59]} d5 {[%emt 0:02:24]} 39. Rh2 {[%emt 0:03:56]} c6 {[%emt 0:01:18]} 40. Re1 {[%emt 0:00:00]} Nd3 {[%emt 0:00:00]} 41. Re3 {[%emt 0:02:24]} d4 {[%emt 0:03:31]} 42. cxd4 {[%emt 0:04:05]} exd4 {[%emt 0:00:31]} 43. Rxd3 {[%emt 0:02:11]} Bxd3 {[%emt 0:00:03]} 44. Kg3 {[%emt 0:00:14]} Rh8 {[%emt 0:00:46]} 45. f4+ {[%emt 0:00:10]} Kg6 {[%emt 0:00:27]} 46. Rd2 {[%emt 0:00:51]} Bxe4 {[%emt 0:00:08]} 47. Rxd4 {[%emt 0:00:04]} Bd5 {[%emt 0:00:06]} 48. h4 {[%emt 0:00:46]} Kf6 {[%emt 0:01:33]} 49. h5 {[%emt 0:01:52]} b6 {[%emt 0:00:39]} 50. Rd2 {[%emt 0:02:10]} Re8 {[%emt 0:00:41]} 51. g5+ {[%emt 0:02:26]} Kf5 {[%emt 0:00:52]} 52. h6 {[%emt 0:01:14]} Re3+ {[%emt 0:05:51]} 53. Kh4 {[%emt 0:02:28]} Kg6 {[%emt 0:00:49]} 54. Rf2 {[%emt 0:01:36]} Be6 {[%emt 0:00:45]} 55. Rh2 {[%emt 0:01:42]} c5 {[%emt 0:02:04]} 56. h7 {[%emt 0:01:05]} Kxh7 {[%emt 0:00:05]} 57. Kh5 {[%emt 0:00:38]} Rh3+ {[%emt 0:00:32]} 58. Rxh3 {[%emt 0:00:12]} Bxh3 {[%emt 0:00:01]} 59. g6+ {[%emt 0:00:28]} Kg7 {[%emt 0:00:01]} 0-1

[Event "EYTCC Open U18 2022"]
[Site "Thessaloniki"]
[Date "2022.07.17"]
[Round "6.37"]
[White "Olenik Campa, Rudi"]
[Black "Betsakou, Sofia"]
[Result "1-0"]
[ECO "A00"]
[WhiteElo "2203"]
[BlackElo "1412"]
[Annotator "ChessBase"]
[PlyCount "85"]
[EventDate "2022.07.12"]
[EventType "team-tourn"]
[EventCountry "GRE"]
[SourceTitle "playchess.com"]
[Source "ChessBase"]
[SourceQuality "1"]
[WhiteTeam "Slovenia"]
[BlackTeam "Greece"]
[WhiteTeamCountry "SLO"]
[BlackTeamCountry "GRE"]
[TimeControl "40/5400+30:1800+30"]

1. g3 {[%emt 0:00:04]} g6 {[%emt 0:00:07]} 2. Bg2 {[%emt 0:00:05]} Bg7 {[%emt 0:00:06]} 3. e4 {[%emt 0:00:30]} d6 {[%emt 0:00:24]} 4. Ne2 {[%emt 0:00:06]} c5 {[%emt 0:00:55]} 5. O-O {[%emt 0:00:07]} Nf6 {[%emt 0:01:44]} 6. c3 {[%emt 0:00:15]} O-O {[%emt 0:01:48]} 7. d4 {[%emt 0:00:12]} cxd4 {[%emt 0:00:56]} 8. cxd4 {[%emt 0:00:08]} e5 {[%emt 0:02:40]} 9. Nbc3 {[%emt 0:00:19]} a6 {[%emt 0:09:08]} 10. h3 {[%emt 0:00:09]} Nbd7 {[%emt 0:00:50]} 11. Be3 {[%emt 0:00:11]} Re8 {[%emt 0:01:43]} 12. f4 {[%emt 0:00:13]} b5 {[%emt 0:08:54]} 13. a3 {[%emt 0:02:02]} Rb8 14. g4 {[%emt 0:04:21]} exf4 {[%emt 0:08:42]} 15. Nxf4 Bb7 16. d5 {[%emt 0:02:39]} Ne5 {[%emt 0:03:24]} 17. Nd3 {[%emt 0:04:06]} Nfd7 {[%emt 0:02:30]} 18. Nxe5 {[%emt 0:00:11]} Nxe5 {[%emt 0:00:22]} 19. Bd4 {[%emt 0:02:39]} Qd7 {[%emt 0:05:46]} 20. b3 {[%emt 0:00:14]} a5 {[%emt 0:03:20]} 21. Ne2 {[%emt 0:01:59]} Ba6 {[%emt 0:05:11]} 22. b4 {[%emt 0:00:40]} a4 {[%emt 0:05:46]} 23. Rc1 {[%emt 0:02:54]} Rbc8 {[%emt 0:01:31]} 24. Qd2 {[%emt 0:01:35]} Rxc1 {[%emt 0:03:37]} 25. Rxc1 {[%emt 0:00:09]} Rc8 {[%emt 0:03:16]} 26. Kh1 {[%emt 0:10:11]} Rxc1+ {[%emt 0:05:44]} 27. Qxc1 {[%emt 0:00:03]} Qc8 {[%emt 0:00:40]} 28. Qxc8+ {[%emt 0:00:20]} Bxc8 {[%emt 0:00:06]} 29. Nc3 {[%emt 0:00:31]} Nc4 {[%emt 0:08:42]} 30. Bxg7 {[%emt 0:01:39]} Kxg7 {[%emt 0:00:48]} 31. Nxb5 {[%emt 0:00:05]} Bd7 {[%emt 0:01:15]} 32. Nc3 {[%emt 0:10:02]} Nxa3 {[%emt 0:00:23]} 33. Bf1 {[%emt 0:00:04]} Nc2 {[%emt 0:06:20]} 34. b5 {[%emt 0:00:04]} a3 {[%emt 0:01:53]} 35. b6 {[%emt 0:00:37]} Bc8 {[%emt 0:00:49]} 36. e5 {[%emt 0:01:43]} dxe5 {[%emt 0:05:11]} 37. d6 {[%emt 0:00:03]} Nb4 {[%emt 0:01:14]} 38. Bb5 {[%emt 0:06:04]} Kf6 {[%emt 0:03:03]} 39. Kh2 {[%emt 0:02:27]} a2 {[%emt 0:00:40]} 40. Nxa2 {[%emt 0:00:00]} Nxa2 {[%emt 0:00:00]} 41. d7 {[%emt 0:00:53]} Bxd7 {[%emt 0:03:12]} 42. Bxd7 {[%emt 0:00:14]} Nb4 {[%emt 0:02:30]} 43. Bb5 {[%emt 0:00:05]} 1-0

[Event "EYTCC Open U18 2022"]
[Site "Thessaloniki"]
[Date "2022.07.17"]
[Round "6.38"]
[White "Betsakos, Haralampos"]
[Black "Gregoric, Andraz"]
[Result "0-1"]
[ECO "A46"]
[WhiteElo "1183"]
[BlackElo "2199"]
[Annotator "ChessBase"]
[PlyCount "108"]
[EventDate "2022.07.12"]
[EventType "team-tourn"]
[EventCountry "GRE"]
[SourceTitle "playchess.com"]
[Source "ChessBase"]
[SourceQuality "1"]
[WhiteTeam "Greece"]
[BlackTeam "Slovenia"]
[WhiteTeamCountry "GRE"]
[BlackTeamCountry "SLO"]
[TimeControl "40/5400+30:1800+30"]

1. d4 {[%emt 0:00:03]} Nf6 {[%emt 0:00:06]} 2. Nf3 {[%emt 0:00:07]} e6 {[%emt 0:00:06]} 3. Bf4 {[%emt 0:00:30]} d5 {[%emt 0:00:36]} 4. e3 {[%emt 0:00:23]} Bd6 {[%emt 0:00:17]} 5. Bg3 {[%emt 0:00:38]} c5 {[%emt 0:00:46]} 6. c3 {[%emt 0:00:27]} Qc7 {[%emt 0:00:15]} 7. Nbd2 {[%emt 0:01:27]} Nbd7 {[%emt 0:00:39]} 8. Bd3 {[%emt 0:02:28]} O-O {[%emt 0:00:07]} 9. Rc1 {[%emt 0:05:24]} e5 {[%emt 0:00:24]} 10. dxe5 {[%emt 0:02:02]} Nxe5 {[%emt 0:02:29]} 11. Nxe5 {[%emt 0:01:04]} Bxe5 12. Nf3 {[%emt 0:04:31]} Bxg3 {[%emt 0:00:13]} 13. hxg3 {[%emt 0:00:10]} Bg4 {[%emt 0:03:20]} 14. Qc2 {[%emt 0:03:45]} g6 {[%emt 0:01:27]} 15. Be2 {[%emt 0:02:32]} Rad8 {[%emt 0:00:42]} 16. O-O {[%emt 0:03:42]} b6 {[%emt 0:02:15]} 17. Rfd1 {[%emt 0:05:56]} Rfe8 {[%emt 0:00:11]} 18. Nh2 {[%emt 0:12:22]} Bc8 {[%emt 0:01:46]} 19. Nf3 {[%emt 0:05:15]} Qe7 {[%emt 0:04:37]} 20. Bb5 {[%emt 0:01:40]} Bd7 {[%emt 0:00:47]} 21. Bxd7 {[%emt 0:01:04]} Rxd7 {[%emt 0:00:09]} 22. c4 {[%emt 0:10:24]} Red8 {[%emt 0:00:26]} 23. cxd5 {[%emt 0:05:20]} Nxd5 {[%emt 0:04:14]} 24. Qe2 {[%emt 0:07:04]} Nf6 {[%emt 0:01:19]} 25. Rxd7 {[%emt 0:05:46]} Qxd7 {[%emt 0:00:07]} 26. Qc2 {[%emt 0:04:08]} Qd5 {[%emt 0:03:23]} 27. a3 {[%emt 0:03:31]} h5 {[%emt 0:01:38]} 28. Qc3 {[%emt 0:02:51]} Ne4 {[%emt 0:10:39]} 29. Qc2 {[%emt 0:03:48]} Nf6 {[%emt 0:03:18]} 30. Kf1 {[%emt 0:00:51]} Ng4 {[%emt 0:00:17]} 31. Qc4 {[%emt 0:01:16]} Qd6 {[%emt 0:03:26]} 32. Qc3 {[%emt 0:01:04]} Rd7 {[%emt 0:08:11]} 33. Ke1 {[%emt 0:01:41]} Qe7 {[%emt 0:06:59]} 34. Rc2 {[%emt 0:00:35]} Qe4 {[%emt 0:02:51]} 35. Qc4 {[%emt 0:01:56]} Qf5 {[%emt 0:03:03]} 36. Ke2 {[%emt 0:01:31]} b5 {[%emt 0:02:01]} 37. Qc3 {[%emt 0:00:47]} a5 {[%emt 0:07:11]} 38. Rd2 {[%emt 0:00:19]} b4 {[%emt 0:00:25]} 39. axb4 {[%emt 0:00:30]} axb4 {[%emt 0:03:14]} 40. Qc2 {[%emt 0:00:00]} Rxd2+ {[%emt 0:00:00]} 41. Qxd2 {[%emt 0:05:23]} Qb1 {[%emt 0:06:53]} 42. Ne1 {[%emt 0:05:32]} Ne5 {[%emt 0:14:05]} 43. Qc2 {[%emt 0:03:38]} Qa1 {[%emt 0:00:29]} 44. b3 {[%emt 0:03:37]} c4 {[%emt 0:06:34]} 45. bxc4 {[%emt 0:03:33]} Qa3 {[%emt 0:01:24]} 46. Nd3 {[%emt 0:08:20]} b3 {[%emt 0:01:27]} 47. Qc3 {[%emt 0:01:12]} Nxd3 {[%emt 0:00:51]} 48. Qxd3 {[%emt 0:02:43]} Qa2+ {[%emt 0:00:13]} 49. Kf3 {[%emt 0:01:16]} b2 {[%emt 0:02:20]} 50. Qd8+ {[%emt 0:00:19]} Kg7 {[%emt 0:00:11]} 51. Qd4+ {[%emt 0:00:32]} Kh7 {[%emt 0:00:29]} 52. Qd5 {[%emt 0:00:41]} Qa7 {[%emt 0:00:38]} 53. Qb5 {[%emt 0:00:36]} Qa1 {[%emt 0:00:35]} 54. Qb7 {[%emt 0:00:34]} b1=Q {[%emt 0:00:22]} 0-1

[Event "EYTCC Open U18 2022"]
[Site "Thessaloniki"]
[Date "2022.07.17"]
[Round "6.39"]
[White "Skrbec, Leon"]
[Black "Karkanas, Stylianos"]
[Result "1-0"]
[ECO "E68"]
[WhiteElo "2103"]
[BlackElo "1089"]
[Annotator "TA"]
[PlyCount "65"]
[EventDate "2022.07.12"]
[EventType "team-tourn"]
[EventCountry "GRE"]
[SourceTitle "playchess.com"]
[Source "ChessBase"]
[SourceQuality "1"]
[WhiteTeam "Slovenia"]
[BlackTeam "Greece"]
[WhiteTeamCountry "SLO"]
[BlackTeamCountry "GRE"]
[TimeControl "40/5400+30:1800+30"]

{[%evp 15,64,37,54,27,33,27,26,33,59,34,93,87,72,33,31,29,38,0,44,48,72,65,115,112,121,87,76,86,226,235,445,407,424,406,402,411,471,455,409,385,375,311,299,124,1011,975,29995,29996,29996,29997,29999]} 1. d4 {[%emt 0:00:08]} Nf6 {[%emt 0:00:11]} 2. c4 {[%emt 0:00:11]} g6 {[%emt 0:00:12]} 3. Nc3 {[%emt 0:00:34]} Bg7 {[%emt 0:00:16]} 4. g3 {[%emt 0:00:42]} O-O {[%emt 0:00:41]} 5. Bg2 {[%emt 0:00:06]} d6 {[%emt 0:00:19]} 6. Nf3 {[%emt 0:01:39]} Nbd7 {[%emt 0:00:48]} 7. O-O {[%emt 0:00:22]} e5 {[%emt 0:02:18]} 8. e4 {[%emt 0:00:25]} Re8 {[%emt 0:03:01]} 9. Re1 {[%emt 0:00:59] E68: King's Indian: Fianchetto: 6...Nbd7 7 0-0 e5 8 e4.} a5 {[%emt 0:04:01]} 10. h3 {[%emt 0:04:31]} exd4 {[%emt 0:08:34]} 11. Nxd4 {[%emt 0:00:06] White has an edge.} Ne5 {[%emt 0:01:48]} 12. b3 {[%emt 0:01:18]} Nfd7 {[%emt 0:06:06] [#]} (12... Bd7 $14) 13. f4 $146 {[%emt 0:02:04]} ({Predecessor:} 13. Be3 Nc5 14. Re2 Bd7 15. Rd2 a4 16. Rb1 axb3 17. axb3 Qc8 18. f4 Nc6 19. b4 {1-0 (38) Pavlov,S (2479)-Semenova,I (2240) Voronezh 2013}) 13... Nc6 {[%emt 0:00:45]} 14. Nxc6 {[%emt 0:00:05]} bxc6 {[%emt 0:00:17]} 15. Bb2 {[%emt 0:00:04]} (15. e5 dxe5 16. Qc2 (16. Bxc6 $2 Ra6 $19) 16... e4 $17) 15... Nc5 {[%emt 0:06:15]} 16. Qc2 {[%emt 0:03:55]} Bd7 {[%emt 0:08:16]} (16... a4 $5) 17. Rad1 {[%emt 0:00:57][%cal Oe4e5]} Qc8 {[%emt 0:01:48]} 18. Kh2 {[%emt 0:04:45][%cal Oe4e5]} a4 {[%emt 0:09:06]} (18... Rb8 $14) 19. b4 {[%emt 0:04:49]} Ne6 {[%emt 0:01:35]} 20. e5 {[%emt 0:03:59]} a3 {[%emt 0:03:09]} 21. Bc1 {[%emt 0:00:16] White is more active.} (21. Ba1 $5 {[%cal Re5d6]}) 21... Bf8 {[%emt 0:06:01]} (21... dxe5 $16 22. fxe5 Nf8) 22. Ne4 {[%emt 0:01:27]} Be7 {[%emt 0:03:51] [#]} (22... Bg7 23. Qd3 (23. exd6 f5 $18) 23... Qb8 24. exd6 Rd8 25. dxc7 (25. Bxa3 cxd6 26. f5 Nd4 $16) 25... Nxc7) 23. exd6 $18 {[%emt 0:00:25]} cxd6 {[%emt 0:00:23][%cal Od6d5]} 24. Nxd6 {[%emt 0:00:18]} Bxd6 {[%emt 0:00:19]} 25. Rxd6 {[%emt 0:00:05]} Nf8 {[%emt 0:05:46]} 26. Rxe8 {[%emt 0:03:10]} Qxe8 {[%emt 0:00:16]} 27. Qc3 {[%emt 0:01:55]} Qe2 {[%emt 0:06:41]} 28. Rd2 {[%emt 0:02:00]} Qe1 {[%emt 0:01:49]} 29. b5 {[%emt 0:00:59]} (29. Rd3 $18 {and White stays clearly on top.} Qxc3 30. Rxc3) 29... Rc8 $2 {[%emt 0:02:40][%mdl 8192]} (29... Re8 $16 30. Rc2 (30. Bxa3 $2 Re3 $19) (30. Bxc6 $2 Bxc6 31. bxc6 Re2+ 32. Rxe2 Qxc3 $19) 30... Qxc3 31. Rxc3 cxb5) 30. Bxa3 {[%emt 0:00:52] White wants to mate with Bb2.} cxb5 {[%emt 0:01:25]} 31. Bb2 {[%emt 0:00:16][%csl Gb2][%cal Rc3g7] This bishop pair is nice. White mates.} f6 {[%emt 0:03:08] [#]} 32. Qxf6 $1 {[%emt 0:00:23][%csl Gb2][%cal Rf6g7]} Qxd2 {[%emt 0:03:51]} (32... Qxg3+ 33. Kxg3) 33. Qg7# {[%emt 0:00:05] Weighted Error Value: White=0.20 (precise) /Black=0.60} 1-0

[Event "EYTCC Open U18 2022"]
[Site "Thessaloniki"]
[Date "2022.07.18"]
[Round "7.1"]
[White "Levin, Guy"]
[Black "Baum, Jonasz"]
[Result "1-0"]
[ECO "A06"]
[WhiteElo "2363"]
[BlackElo "2410"]
[Annotator "TA"]
[PlyCount "121"]
[EventDate "2022.07.12"]
[EventType "team-tourn"]
[EventCountry "GRE"]
[SourceTitle "playchess.com"]
[Source "ChessBase"]
[SourceQuality "1"]
[WhiteTeam "Israel"]
[BlackTeam "Poland"]
[WhiteTeamCountry "ISR"]
[BlackTeamCountry "POL"]
[TimeControl "40/5400+30:1800+30"]

{[%evp 9,121,41,45,23,20,16,18,10,16,4,14,12,8,7,12,11,5,11,12,6,13,0,0,18,24,18,27,0,23,20,40,0,9,6,25,18,14,17,33,35,14,27,18,0,25,22,21,22,23,26,79,66,97,100,110,109,100,100,188,189,182,188,176,171,213,201,255,257,233,224,279,276,273,278,291,291,398,374,343,320,316,314,393,388,387,380,374,371,365,358,327,318,425,419,402,381,640,639,625,624,608,577,671,650,638,0,645,638,638,638,612,612,593,583]} 1. Nf3 {[%emt 0:00:07]} d5 {[%emt 0:00:04]} 2. g3 {[%emt 0:00:04]} Nd7 {[%emt 0:00:04]} 3. d4 {[%emt 0:00:05]} Nb6 {[%emt 0:00:04]} 4. Bg2 {[%emt 0:00:30]} Bf5 {[%emt 0:00:23]} 5. a4 {[%emt 0:00:16]} a5 {[%emt 0:00:06]} 6. b3 {[%emt 0:03:33] D02: 1 d4 d5 2 Nf3 sidelines, including 2...Nf6 3 g3 and 2...Nf6 3 Bf4.} e6 {[%emt 0:01:30]} 7. O-O {[%emt 0:00:42]} Be7 {[%emt 0:01:19]} 8. Nbd2 {[%emt 0:06:03] The position is equal.} h6 {[%emt 0:00:21]} 9. c4 {[%emt 0:03:15] [#]} Nf6 $146 {[%emt 0:01:32]} ({Predecessor:} 9... c6 10. Bb2 Nf6 11. Re1 Bb4 12. Ba3 Bxa3 13. Rxa3 O-O 14. e3 Ne4 15. Qc1 Bh7 {1-0 (53) Migot,T (2353)-Quirke,J (2086) Chess.com INT 2022}) 10. Ne5 {[%emt 0:06:41]} c6 {[%emt 0:03:28]} 11. e3 {[%emt 0:15:03]} Bh7 {[%emt 0:00:42]} 12. Qe2 {[%emt 0:00:34]} O-O {[%emt 0:02:48]} 13. Bb2 {[%emt 0:03:53]} Nbd7 {[%emt 0:11:13]} 14. Rfd1 {[%emt 0:06:53]} Qb6 {[%emt 0:02:23]} 15. Nxd7 {[%emt 0:02:47]} Nxd7 {[%emt 0:00:02]} 16. e4 {[%emt 0:00:25][%cal Re4d5]} dxe4 {[%emt 0:02:02]} 17. Bxe4 {[%emt 0:02:17]} Bxe4 {[%emt 0:00:14]} 18. Qxe4 {[%emt 0:00:04]} (18. Nxe4 $5 {[%cal Rd4d5]} Rfd8 19. Rd3 $11) 18... Rfd8 {[%emt 0:09:47]} 19. Qc2 {[%emt 0:00:44]} Rac8 {[%emt 0:06:46]} 20. h4 {[%emt 0:14:59]} (20. c5 $5 {[%cal Rc5b6]} Qc7 21. Nc4 $14) 20... Nf6 {[%emt 0:02:50]} 21. Nf3 {[%emt 0:00:28]} Ng4 22. Rd3 {[%emt 0:01:04]} Qc7 {[%emt 0:11:59]} 23. Qe2 {[%emt 0:04:18]} Bf8 {[%emt 0:04:05]} 24. Rad1 {[%emt 0:02:10]} b5 {[%emt 0:04:01]} 25. cxb5 {[%emt 0:06:23]} cxb5 {[%emt 0:00:14]} 26. Rc3 {[%emt 0:04:04]} Qb6 {[%emt 0:04:49]} 27. Rxc8 {[%emt 0:03:58]} Rxc8 {[%emt 0:00:06]} 28. Qxb5 {[%emt 0:02:09]} Qxb5 {[%emt 0:00:05]} 29. axb5 {[%emt 0:00:03] aiming for d5.} Nf6 {[%emt 0:20:51]} (29... Rb8 $11) 30. Ra1 $16 {[%emt 0:01:20] White stays focused until the end.} Bb4 {[%emt 0:00:19] [#]} 31. Ba3 $1 {[%emt 0:00:49]} Rb8 {[%emt 0:00:34]} 32. Bxb4 {[%emt 0:00:31]} axb4 {[%emt 0:00:01][%mdl 4096] Endgame KRN-KRN} 33. Ne5 {[%emt 0:02:00][%cal Ob5b6]} Rb7 {[%emt 0:09:51]} (33... Rxb5 $16 {might work better.} 34. Ra8+ Kh7) 34. Ra8+ $18 {[%emt 0:03:13]} Kh7 {[%emt 0:00:01]} 35. Ra5 {[%emt 0:00:07]} Nd5 {[%emt 0:00:29] [#]} 36. Nc4 $1 {[%emt 0:03:18]} Nc3 {[%emt 0:00:53]} 37. b6 {[%emt 0:00:01] Black must now prevent Ra7.} Ne2+ {[%emt 0:00:40]} 38. Kf1 {[%emt 0:00:02]} Nxd4 {[%emt 0:00:04]} 39. Ra4 {[%emt 0:02:39]} Nxb3 {[%emt 0:01:54]} 40. Rxb4 {[%emt 0:00:00]} Nc5 {[%emt 0:00:00]} 41. Na5 {[%emt 0:00:30]} Rb8 {[%emt 0:07:46]} 42. b7 {[%emt 0:00:18]} Kg6 {[%emt 0:00:26]} 43. Rb5 {[%emt 0:00:26]} Nxb7 {[%emt 0:00:11]} 44. h5+ {[%emt 0:01:29]} ({Don't do} 44. Nxb7 f5 45. Ke2 Kf6 $18) ({Don't play} 44. Rxb7 Rxb7 45. Nxb7 h5) 44... Kf6 {[%emt 0:00:14]} 45. Nxb7 {[%emt 0:00:43] KRN-KR} g6 {[%emt 0:01:37]} 46. hxg6 {[%emt 0:01:08]} Kxg6 {[%emt 0:00:07]} 47. Nd6 {[%emt 0:00:22] Against Rc8} Rd8 {[%emt 0:00:04]} 48. Nc4 {[%emt 0:00:34] Ne5+ is the strong threat.} f6 {[%emt 0:03:16] Against Ne5+} 49. Kg2 {[%emt 0:00:29]} Rd4 {[%emt 0:00:05]} 50. Ne3 {[%emt 0:00:20]} h5 {[%emt 0:00:16]} 51. Kh3 {[%emt 0:00:48]} Rd2 {[%emt 0:00:25]} 52. Ng2 {[%emt 0:00:09]} e5 $2 {[%emt 0:01:09]} (52... Kg7 53. f4 Rd1) 53. Nh4+ {[%emt 0:00:09]} Kf7 {[%emt 0:00:44]} 54. Rb7+ {[%emt 0:00:48]} Ke6 {[%emt 0:00:05]} 55. Kg2 {[%emt 0:00:04]} e4 {[%emt 0:00:15]} 56. Rb6+ {[%emt 0:00:08]} Kf7 {[%emt 0:00:18]} 57. Rb7+ {[%emt 0:01:03]} Ke6 {[%emt 0:00:05]} 58. Rb4 {[%emt 0:00:25] White is clearly winning.} Ke5 {[%emt 0:00:29]} 59. Rb5+ {[%emt 0:00:25]} Ke6 {[%emt 0:00:19]} 60. Kf1 {[%emt 0:00:09]} Rd3 {[%emt 0:01:13]} 61. Ke2 {[%emt 0:00:15] Inhibits e3.  Weighted Error Value: White=0.12 (very precise) /Black=0.23 (precise)} 1-0